Cogmind - Beta 16 --- EXPLORER MODE // 2025.12.22 @ 15:41:59 Player: K.K.Y. Result: Destroyed by D-53 Grenadier with Mini Grenade Launcher Performance ------------- Evolutions (0) 0 Regions Visited (2) 400 Robots Destroyed (23) 115 Value Destroyed (305) 305 Prototype IDs (7) 140 Alien Tech Used (0) 0 Bonus (0) 0 TOTAL SCORE: 960 Bonus ------- None Cogmind --------- Core Integrity 0/250 Matter 300/300 Energy 79/100 System Corruption 3% Temperature Cool (0) Movement Core (200) Ox3 Location -10/Mines Parts ------- > --- POWER (1) -------- (None) > --- PROPULSION (2) --- (None) > --- UTILITY (3) ------ Improved Heat Sink Medium Storage Unit Structural Scanner > --- WEAPON (2) ------- (None) > --- INVENTORY (10) --- Ion Engine Light Treads Large Storage Unit Cargo Storage Unit Weight Redist. System Light Armor Plating Light Armor Plating Light Armor Plating Mining Laser Peak State ------------ > --- POWER ------------ (None) > --- PROPULSION ------- Light Treads Light Treads > --- UTILITY ---------- Improved Heat Sink Medium Storage Unit Structural Scanner > --- WEAPON ----------- Medium Laser Small Laser > --- INVENTORY -------- Ion Engine Light Treads Large Storage Unit Cargo Storage Unit Weight Redist. System Light Armor Plating Light Armor Plating Light Armor Plating Mining Laser [Rating: 10] Favorites ----------- Power None Propulsion Light Treads Treads Light Treads Utility Medium Storage Unit Device Structural Scanner Storage Medium Storage Unit Weapon Medium Laser Energy Gun Medium Laser Build | -11 -10 -10 ------- Run | Yrd Mat Min Slots Evolved 1 | . 1 . Power . | . . . Propulsion . | . . . Utility 1 | . 1 . Weapon . | . . . Parts Attached 7 | 4 2 1 Power . | . . . Engine . | . . . Core . | . . . Reactor . | . . . Propulsion 2 | 1 1 . Treads 2 | 1 1 . Leg . | . . . Wheel . | . . . Hover . | . . . Flight . | . . . Utility 3 | 1 1 1 Device 2 | . 1 1 Storage 1 | 1 . . Processor . | . . . Hackware . | . . . Protection . | . . . Artifact . | . . . Weapon 2 | 2 . . Energy Gun 2 | 2 . . Energy Cannon . | . . . Ballistic Gun . | . . . Ballistic Cannon . | . . . Launcher . | . . . Special Weapon . | . . . Impact Weapon . | . . . Slashing Weapon . | . . . Piercing Weapon . | . . . Special Melee Weapon . | . . . Unidentified Prototypes . | . . . Parts Lost 4 | . . 4 Power . | . . . Propulsion 2 | . . 2 Utility . | . . . Weapon 2 | . . 2 Highest Loss Streak 3 | . . 3 To Critical Strikes . | . . . Average Backups 7 | 5 7 9 Power . | . 1 1 Propulsion . | . . 1 Utility 5 | 4 5 6 Weapon . | . 1 1 Tool/Special . | . . . Unused Backups 13 | . 4 9 Power 1 | . . 1 Propulsion 1 | . . 1 Utility 10 | . 4 6 Weapon 1 | . . 1 Tool/Special . | . . . Average Slot Usage (%) 76 | . 74 83 Treads 24 | . 24 25 Device 14 | . 11 22 Storage 12 | . 12 12 Energy Gun 24 | . 25 23 Peak Build Rating 10 | 4 7 10 Average Rating 7 | 3 6 9 On Entrance 3 | . 4 7 Avg Prop Armor Cover (%) 12 | . 13 12 Naked Turns . | . . . Heaviest Build 15 | 13 14 15 Greatest Support 40 | 20 40 40 Greatest Overweight (x) 3 | . . 3 Average Overweight (x) . | . . . Largest Inventory Capacity 10 | 10 10 10 Average Capacity 9 | 8 10 10 Most Carried 10 | 8 10 10 Average Carried 8 | 6 8 10 Final Capacity 10 | 10 10 10 Final Carried 10 | 8 10 10 Class Distribution -------------------- 100% | Hacker-Mutant Dominant Class ---------------- Hacker-Mutant | -10/Materials Hacker-Mutant | -10/Mines Resources | -11 -10 -10 ----------- Run | Yrd Mat Min Matter Collected 292 | 240 28 24 Remotely . | . . . Salvage Created 677 | 164 399 114 Parts 51 | 12 32 7 Haulers Intercepted 2 | . 2 . Recyclers Shooed 1 | . 1 . Parts Field Recycled . | . . . Retrieved Matter . | . . . Parts Self-Destructed . | . . . Prevented . | . . . Parts Restored . | . . . Kills | -11 -10 -10 ------- Run | Yrd Mat Min Combat Hostiles Destroyed 14 | . 11 3 Guns 14 | . 11 3 Classes Destroyed 9 | 2 6 1 Worker 1 | . 1 . Builder 1 | . 1 . Tunneler 4 | 3 . 1 Hauler 2 | . 2 . Recycler 1 | 1 . . Watcher 2 | . 2 . Swarmer 8 | . 8 . Grunt 4 | . 3 1 Assembled 2 | . . 2 Best Kill Streak 3 | 2 3 2 Combat Bots Only 3 | . 3 2 Max Kills in Single Turn 2 | 1 2 1 Gunslinging . | . . . Exploded . | . . . Melee . | . . . Uniques/NPCs Destroyed . | . . . Combat | -11 -10 -10 -------- Run | Yrd Mat Min Hostile Shots Fired 80 | . 30 50 Missed 22 | . 10 12 Hits 58 | . 20 38 Melee 1 | . . 1 Projectile 57 | . 20 37 AOE 13 | . . 13 Critical Strikes 1 | . . 1 Part Disruptions 1 | . 1 . Damage Taken 715 | . 162 553 Core 252 | . 58 194 Absorbed by Shields . | . . . Ignored by Resistances 449 | . 109 340 Core Remaining (%) 100 | 100 . . Volleys Fired 67 | 7 40 20 Largest 2 | 2 2 2 Hottest 90 | 90 90 90 Shots Fired 123 | 14 73 36 Gun 123 | 14 73 36 Cannon . | . . . Launcher . | . . . Special . | . . . Kinetic . | . . . Thermal 123 | 14 73 36 Explosive . | . . . Electromagnetic . | . . . Robot Hit Streak 19 | 10 19 17 Robot Miss Streak 3 | . 3 2 Penetration Max . | . . . Secondary Targets 1 | . . 1 Max Gunslinging Chain 1 | . . 1 Shots Hit Robots 96 | 10 55 31 Core Hits 39 | 5 23 11 Critical Kills . | . . . Critical Parts Destroyed . | . . . Critical Strikes 4 | . 3 1 Burn 4 | . 3 1 Melee Attacks . | . . . Impact . | . . . Slashing . | . . . Piercing . | . . . Sneak Attacks . | . . . Combat Hostiles . | . . . Follow-up Attacks . | . . . Damage Inflicted 1143 | 118 658 367 Guns 1143 | 118 658 367 Cannons . | . . . Explosions . | . . . Melee . | . . . Ramming . | . . . Kinetic . | . . . Thermal 1143 | 118 658 367 Explosive . | . . . Electromagnetic . | . . . Impact . | . . . Slashing . | . . . Piercing . | . . . Highest Corruption 3 | . 3 3 Average Corruption 1 | . 1 3 Corruption Purged . | . . . Corruption Blocked . | . . . Effects 18 | . 10 8 Message Errors 5 | . 2 3 Matter Fused 3 | . 1 2 Heat Flow Errors 3 | . 2 1 Parts Fused 1 | . 1 . Data Loss (minor) 5 | . 3 2 Misfires 1 | . 1 . Overload Shots . | . . . Overflow Damage . | . . . Projectiles . | . . . Explosions . | . . . Melee . | . . . Knockbacks . | . . . Impact . | . . . Kinetic . | . . . Secondary . | . . . Self-Inflicted Damage . | . . . Shots . | . . . Rammed . | . . . Targets Rammed . | . . . Kicked . | . . . Crushed . | . . . Highest Temperature 264 | 60 264 256 Average Temperature 47 | 24 39 89 Received Heat Transfer 186 | . 30 156 Siege Activations . | . . . Martial Activations . | . . . Shielding Activations . | . . . Robots Disrupted . | . . . Combat Hostiles . | . . . Robots Corrupted . | . . . Combat Hostiles . | . . . Parts Fried . | . . . Impact Corruptions . | . . . Robots Melted . | . . . Combat Hostiles . | . . . Parts Melted 5 | . 4 1 Heat Transferred 3393 | 334 1994 1065 Parts Sabotaged . | . . . Parts Stolen . | . . . Parts Stripped . | . . . Power Chain Reactions . | . . . Alert | -11 -10 -10 ------- Run | Yrd Mat Min Maximum Alert Level . | . . . Low Security (%) 100 | 100 100 100 Level 1 . | . . . Level 2 . | . . . Level 3 . | . . . Level 4 . | . . . Level 5 . | . . . High Security . | . . . Max Security . | . . . Peak Influence 55 | 5 55 50 Initial . | . . . Average 5 | 2 6 3 Influence Increases 375 | 20 305 50 Destroy 0b10 Robot/C 240 | . 220 20 Destroy 0b10 Robot/NC 55 | 20 30 5 Destroy Leader 58 | . 48 10 Successful Hack 7 | . 7 . Lose Combat Pursuer 15 | . . 15 Influence Decreases 375 | 20 305 50 Time Decay 375 | 20 305 50 Squads Dispatched . | . . . Investigation . | . . . Extermination . | . . . Reinforcement . | . . . Assault . | . . . Garrison . | . . . Intercept . | . . . Searches Triggered . | . . . Construction Impeded . | . . . Haulers Reinforced . | . . . Active Scanning Responses . | . . . Cargo Convoy Interrupts . | . . . Stealth | -11 -10 -10 --------- Run | Yrd Mat Min Distress Signals 2 | . 2 . Communications Jammed . | . . . Distress Signals . | . . . Times Spotted 38 | . 16 22 Peak Tracking Total 12 | . 4 12 Tactical Retreats 1 | . . 1 Traps | -11 -10 -10 ------- Run | Yrd Mat Min Traps Triggered 6 | . 6 . Indirectly . | . . . Trap Hack Attempts . | . . . Triggered . | . . . Disarmed . | . . . Reprogrammed . | . . . Reused . | . . . Traps Extracted . | . . . Installed . | . . . Triggered . | . . . Machines | -11 -10 -10 ---------- Run | Yrd Mat Min Machines Disabled . | . . . Max in Single Turn . | . . . Machines Repaired . | . . . Machines Dismantled . | . . . Machines Sabotaged . | . . . Overloaded Fab Kills . | . . . Hacking | -11 -10 -10 --------- Run | Yrd Mat Min Machines Accessed 8 | . 8 . Terminals 8 | . 8 . Fabricators . | . . . Repair Stations . | . . . Recycling Units . | . . . Scanalyzers . | . . . Garrison Access . | . . . Total Hacks 29 | . 29 . Successful 18 | . 18 . Failed 11 | . 11 . Catastrophic . | . . . Database Lockouts . | . . . Manual 29 | . 29 . Terminals 29 | . 29 . Fabricators . | . . . Repair Stations . | . . . Recycling Units . | . . . Scanalyzers . | . . . Garrison Access . | . . . Terminal Hacks 10 | . 10 . Prototype ID Bank 10 | . 10 . Fabricator Hacks . | . . . Repair Station Hacks . | . . . Recycling Unit Hacks . | . . . Scanalyzer . | . . . Garrison Access Hacks . | . . . Unauthorized Hacks 8 | . 8 . Terminals 8 | . 8 . Botnet 8 | . 8 . Fabricators . | . . . Repair Stations . | . . . Recycling Units . | . . . Scanalyzers . | . . . Garrison Access . | . . . Data Cores Recovered . | . . . Used . | . . . Hacking Detections 8 | . 8 . Full Trace Events . | . . . Feedback Events . | . . . Feedback Blocked . | . . . Robot Schematics Acquired . | . . . Robots Built . | . . . Authchips . | . . . Time . | . . . Total Robot Build Rating . | . . . Part Schematics Acquired . | . . . Parts Built . | . . . Authchips . | . . . Time . | . . . Total Part Build Rating . | . . . Part Studies Acquired . | . . . Parts Repaired . | . . . Time . | . . . Parts Recycled . | . . . Recycled Matter . | . . . Retrieved Matter . | . . . Retrieved Components . | . . . Parts Scanalyzed . | . . . Part Schematics Acquired . | . . . Parts Damaged . | . . . Bothacking | -11 -10 -10 ------------ Run | Yrd Mat Min Used RIF Installer . | . . . Robots Hacked . | . . . Non-combat . | . . . Combat . | . . . Robot Hacks Applied . | . . . Relay Couplers Released . | . . . Fabnet Peak Effective % . | . . . Robots Rewired . | . . . Allies Hacked . | . . . Hacks Repelled . | . . . Allies | -11 -10 -10 -------- Run | Yrd Mat Min Total Allies 3 | . . 3 Largest Group 3 | . . 3 Highest-Rated Group 40 | . . 40 Highest-Rated Ally 16 | . . 16 Total Orders . | . . . Ally Attacks 24 | . . 24 Total Damage 194 | . . 194 Kills 6 | . . 6 Allies Corrupted . | . . . Allies Melted 1 | . . 1 Intel | -11 -10 -10 ------- Run | Yrd Mat Min Active Infowar (turns) 1565 | . 1111 454 Structural 1565 | . 1111 454 Robot Analysis Total . | . . . Derelict Logs Recovered . | . . . Drone Launches . | . . . Drone Recoveries . | . . . Exploration | -11 -10 -10 ------------- Run | Yrd Mat Min Turns Passed 1706 | 112 1140 454 Spaces Moved 917 | 60 613 244 Core 18 | 16 . 2 Treads 899 | 44 613 242 Legs . | . . . Wheels . | . . . Hover . | . . . Flight . | . . . Fastest Speed 50 | 50 160 160 Average Speed 158 | 130 160 160 Slowest Speed 200 | 160 160 200 Overloaded Moves . | . . . Propulsion Burnouts . | . . . Robots Hopped . | . . . Potential Cave-ins . | . . . Cave-ins Triggered . | . . . Exploration Rate (%) 51 | 4 96 55 Regions Visited 2 Branch Regions 1 Pre-discovered Areas . | . . . Known Exits Taken 2 | 1 1 . Unknown Exits Taken . | . . . Scrap Searched 1 | . . 1 Spaces Dug . | . . . Terrain Destroyed . | . . . Melee . | . . . Projectile . | . . . AOE . | . . . Terrain Rammed . | . . . Walls Destroyed . | . . . Machines Disabled . | . . . Actions | -11 -10 -10 --------- Run | Yrd Mat Min Total 1051 | 78 702 271 Wait 43 | . 37 6 Move 915 | 59 612 244 Hop . | . . . Pick Up 15 | 8 7 . Fast Attach 5 | 4 . 1 Attach 2 | . 2 . Detach . | . . . Swap . | . . . Drop 4 | . 4 . Fire 67 | 7 40 20 Melee . | . . . Ram . | . . . Kick . | . . . Crush . | . . . Escape Stasis . | . . . Rewire . | . . . Trap . | . . . Miscellaneous . | . . . Route ------- -11/Scrapyard -10/Materials (discovered 6 exits: *Mat x3 / *Min x2 / Sub) -10/Mines History --------- Turn | Location | Event 6 | -11/Scrapyard | Identified exit to Materials 6 | -11/Scrapyard | Discovered exit to Materials (range 14) 113 | -11/Scrapyard | Entered Materials 113 | -10/Materials | Evolved 1 slot: Utility x1 315 | -10/Materials | Identified exit to Mines 315 | -10/Materials | Discovered exit to Mines (range 6) 317 | -10/Materials | Build established: Hacker-Mutant 355 | -10/Materials | Identified exit to Materials 355 | -10/Materials | Discovered exit to Materials (range 9) 645 | -10/Materials | Discovered exit to Materials (range 15) 986 | -10/Materials | Discovered exit to Mines (range 8) 1128 | -10/Materials | Discovered exit to Materials (range 16) 1134 | -10/Materials | Identified exit to Subcaves 1134 | -10/Materials | Discovered exit to Subcaves (range 11) 1253 | -10/Materials | Entered Mines 1522 | -10/Mines | Assisted by bots powering up and referring to "LRC-V3" 1609 | -10/Mines | Assembled infested the area 1614 | -10/Mines | Assisted by a Guerilla fighting off Assembled 1701 | -10/Mines | Lost 3 allies 1704 | -10/Mines | Core integrity fell below 50% 1706 | -10/Mines | Core integrity fell below 20% 1707 | -10/Mines | Destroyed by D-53 Grenadier with Mini Grenade Launcher Last Messages --------------- 01668_ as-03283 destroyed. 01669_ Trooper 1b destroyed. 01670_ Mercenary 1a destroyed. 01672_ as-68895 destroyed. 01672_ as-53371 destroyed. 01672_ K-01 Serf collects debris. 01673_ as-97192 destroyed. 01683_ K-01 Serf collects debris. 01696_ The unstable cave ceiling collapses. 01696_ K-01 Serf collects debris. 01696_ K-01 Serf destroyed. 01697_ K-01 Serf collects debris. 01700_ The unstable cave ceiling collapses. 01700_ K-01 Serf collects debris. 01701_ Lgt. Treads destroyed. 01703_ The unstable cave ceiling collapses. 01703_ Lgt. Treads destroyed. 01703_ Med. Laser destroyed. 01705_ /CR%G WJMFLIPIJZQFF# LNUEYVC2GCGG# 01705_ K-01 Serf collects debris. Map ----- +----------------------------------------------------+ | ## """ ######## ##????????###### ### | | ## """ ##### ##?????????#### #### | | ## ##?## ####??########## ####? | | ## ###?## ####?########## ######?? | | ## ####?## ######## ### ######??? | | ### ####?### ####### ####?????? | | ###### ####?#### ###??????? | | ?####### ####?#### ####### ###???????? | | ???###### ####??### ######## ####???????? | | " ##### ####???## ####### ####????????? | | " !!######### ####?????????? | | " ## ##=######### ###??????????? | | ???### ##%## ## ##### ##???????????? | | ????## ##%| ##### ##???????????? | | ???????##* """ %%%##### ##???????????? | | ???????##### """ #### ###### ##???????????? | | ???????##### """ ####### ##### % ##???????????? | | ??????????## ######## ## ##???????????? | | ??????????## ######## % ##???????????? | | ??????????############### ###???????????? | | ??????????######### ####???????????? | | ????????????????### ##????????????? | | ??????########?### # r # ##??????????? | | ??????############ d # # ??????????? | | ??????## #### # % < ????????? | | ??????## ## @ ???????? | | ??????### d ####? ????????? | | ???????##### ###???????????? | | ???????###### #; ###??????????? | | ??????????######## #" k ##??????????? | | ???????????######## ########## # ??????????? | | ????????????????############# % ??????????? | | ?????????????????######???????# g ??????????? | | ??????????????????????????????## ??????????? | | ??????????????????????????????## ??????????? | | ?????????????????????????????????? ??????????????? | | ?????????????????????????????????????????????????? | | ?????????????????????????????????????????????????? | | ?????????????????????????????????????????????????? | | ?????????????????????????????????????????????????? | | ?????????????????????????????????????????????????? | | ?????????????????????????????????????????????????? | | ?????????????????????????????????????????????????? | | ?????????????????????????????????????????????????? | | ?????????????????????????????????????????????????? | | ?????????????????????????????????????????????????? | | ?????????????????????????????????????????????????? | | ?????????????????????????????????????????????????? | | ?????????????????????????????????????????????????? | | | +----------------------------------------------------+ Best States ------------- Heat Dissipation 39 Energy Generation 5 Energy Capacity 100 Matter Stores 300 Matter Capacity 300 Sight Range 16 Terrain Scan Density 10 Resistance: KI 35 Resistance: TH 35 Resistance: EX 35 Resistance: EM 35 Resistance: I 35 Resistance: S 35 Resistance: P 35 Evasion (%) 50 Recoil Reduction 2 Offensive Hacking 20 Item Schematics ----------------- None Robot Schematics ------------------ None Fabricated ------------ Nothing Repaired ---------- Nothing Studied --------- None Alien Tech Used ----------------- None Achievements -------------- None Challenges ------------ None Game ------ Seed NullInterceptMatterbank Manual? 0 Play Time 00:11:13 Cumulative 220.1 hours Start 2025.12.22 @ 14:29:29 End 2025.12.22 @ 15:41:59 Sessions 1 Manual Loads 0 Difficulty Explorer Special Mode None Game No. 333 Rogue 0 Adventurer 0 Explorer 333 Win Type - Total 0 Types 0/0/0/0/0/0/0/0/0/0 Lore% 71 Gallery% 68 Achievement% 53 Wizard Run 0 Options --------- Layout 1 ASCII 0 Keyboard 0 Movement Mouse Keybinds 0 Fullscreen 1 Font 24/Smallcaps Map View 50x35 Zoom Use 0% Tactical HUD 1 Map Filters NONE Filters NONE Steam 1 RUN: 262f5a56-3b64-4383-a5dc-eca69d3351c6